fUSD/lending_fUSD_20250119
["ID","MTS","AMOUNT","RATE_DAILY","PERIOD"]
[349586299,1737312646614,-500.0,0.00020821,2]
[349586301,1737312646623,-500.0,0.00020821,2]
[349586303,1737312646633,-496.48248087,0.00020821,2]
[349586304,1737312646642,-500.0,0.00020821,2]
[349586306,1737312646652,-500.0,0.00020821,2]
[349586308,1737312646661,-500.0,0.00020821,2]
[349586311,1737312646671,-500.0,0.00020821,2]
[349586312,1737312646680,-146.29214105,0.00020821,2]
[349587406,1737312829909,15000.0,0.00023,120]
[349587407,1737312883749,3039.59038086,9.501e-05,2]
[349587408,1737312883776,3310.0,9.501e-05,2]
[349587409,1737312901244,300.0,9.5e-05,2]
[349587410,1737312912803,3010.0,9.5e-05,2]
[349587411,1737312949689,10000.0,9.001e-05,2]
[349587412,1737312949712,10000.0,9.001e-05,2]
[349587413,1737312949733,10000.0,9.001e-05,2]
[349587414,1737312949754,10000.0,9.001e-05,2]
[349587415,1737312949775,10000.0,9.001e-05,2]
[349587416,1737312949798,10000.0,9.001e-05,2]
[349587417,1737312949820,5181.55977701,9.001e-05,2]
[349587432,1737313368014,2368.08,0.00019361,30]
[349587434,1737313464622,248.81,0.00010137,2]
[349587438,1737313663606,-1947.25259758,0.000149,2]
[349587439,1737313663629,-550.0,0.00015,2]
[349587440,1737313673608,1573.28574988,0.000149,2]
[349587463,1737313832449,-197.96,0.00016712,2]
[349587465,1737313832458,-248.81,0.00016813,2]
[349587466,1737313832468,-600.0,0.00017,2]
[349587469,1737313832477,-908.46,0.00017107,2]
[349587470,1737313832486,-973.62629879,0.000184,2]
[349587472,1737313832496,-2228.0,0.000185,2]
[349587475,1737313832505,-973.62629879,0.00018646,2]
[349587477,1737313832515,-530.43,0.00018746,2]
[349587479,1737313832525,-334.21,0.00018807,3]
[349587480,1737313832534,-250.0,0.00018823,2]
[349587483,1737313832544,-912.16420872,0.00018934,2]
[349587506,1737313832785,-87.83579128,0.00018934,2]
[349587508,1737313832795,-992.91,0.00018934,2]
[349587510,1737313832805,-500.0,0.00018939,2]
[349587512,1737313832814,-250.0,0.0001899,2]
[349587514,1737313832823,-650.0,0.00019,2]
[349587516,1737313832833,-479.6,0.00019127,2]
[349587518,1737313832842,-402.3,0.00019132,2]
[349587520,1737313832851,-152.38,0.00019136,2]
[349587522,1737313832861,-727.05,0.00019136,2]
[349587524,1737313832871,-169.98,0.00019142,2]
[349587526,1737313832880,-152.38,0.00019146,2]
[349587528,1737313832891,-152.38,0.00019155,2]
[349587530,1737313832901,-152.38,0.00019165,2]
[349587532,1737313832911,-6156.26,0.00019165,2]
[349587534,1737313832921,-168.54,0.0001917,2]
[349587536,1737313832930,-152.38,0.00019174,2]
[349587538,1737313832940,-152.38,0.00019184,2]
[349587540,1737313832949,-152.38,0.00019193,2]
[349587542,1737313832959,-152.38,0.00019203,2]
[349587544,1737313832968,-152.38,0.00019212,2]
[349587546,1737313832978,-152.38,0.00019222,2]
[349587547,1737313832987,-152.38,0.00019232,2]
[349587548,1737313832998,-150.0,0.00019232,2]
[349587549,1737313833007,-250.0,0.00019242,2]
[349587550,1737313833017,-428.43,0.00019265,2]
[349587551,1737313833028,-182.41,0.00019341,2]
[349587552,1737313833038,-3387.11794277,0.00019348,2]
[349587554,1737313833048,-864.71314078,0.00019351,2]
[349587556,1737313833058,-864.71314078,0.00019362,2]
[349587558,1737313833068,-1071.014574,0.00019362,2]
[349587560,1737313833080,-908.46,0.00019371,2]
[349587562,1737313833090,-1464.54812432,0.00019376,2]
[349587563,1737313833100,-1291.66678762,0.00019377,2]
[349587565,1737313833110,-1071.014574,0.0001938,2]
[349587567,1737313833120,-1464.54812432,0.00019392,2]
[349587569,1737313833130,-10636.44315731,0.00019402,2]
[349587571,1737313833140,-1464.54812432,0.00019412,2]
[349587572,1737313833149,-200.0,0.00019413,2]
[349587573,1737313833159,-200.0,0.00019415,2]
[349587574,1737313833168,-10636.44315731,0.00019419,2]
[349587575,1737313833180,-200.0,0.00019422,2]
[349587576,1737313833189,-1464.54812432,0.00019424,2]
[349587577,1737313833199,-1291.66678762,0.00019426,2]
[349587578,1737313833209,-864.71314078,0.00019427,2]
[349587579,1737313833219,-1464.54812432,0.00019428,2]
[349587580,1737313833228,-3387.11794277,0.00019433,2]
[349587581,1737313833238,-1291.66678762,0.00019434,2]
[349587583,1737313833249,-3387.11794277,0.00019435,2]
[349587585,1737313833262,-1071.014574,0.00019443,2]
[349587587,1737313833271,-1291.66678762,0.00019444,2]
[349587589,1737313833281,-10636.44315731,0.00019447,2]
[349587592,1737313833291,-1071.014574,0.00019449,2]
[349587594,1737313833302,-3387.11794277,0.00019462,2]
[349587596,1737313833311,-5378.01949948,0.00019465,2]
[349587597,1737313833446,-5258.42365783,0.00019465,2]
[349587598,1737313833456,-200.0,0.00019467,2]
[349587599,1737313833465,-1291.66678762,0.00019475,2]
[349587600,1737313833475,-10636.44315731,0.00019476,2]
[349587601,1737313833484,-1071.014574,0.00019476,2]
[349587602,1737313833493,-3387.11794277,0.00019477,2]
[349587603,1737313833503,-54.09132758,0.00019481,2]
[349587604,1737313833515,-145.90867242,0.00019481,2]
[349587605,1737313833526,-864.71314078,0.00019485,2]
[349587606,1737313833540,-864.71314078,0.00019488,2]
[349587607,1737313833549,-502.37038407,0.00019624,2]
[349587608,1737313833559,-2630.7357,0.00019625,2]
[349587609,1737313833567,-899.897,0.00019723,2]
[349587610,1737313833578,-500.0,0.00019724,2]
[349587611,1737313833587,-172.12522892,0.00019724,2]
[349587612,1737313833596,-500.0,0.00019724,2]
[349587613,1737313833604,-500.0,0.00019724,2]
[349587614,1737313833615,-500.0,0.00019724,2]
[349587615,1737313833624,-604.09,0.00019724,2]
[349587616,1737313833633,-500.0,0.00019724,2]
[349587617,1737313833643,-500.0,0.00019724,2]
[349587618,1737313833652,-500.0,0.00019724,2]
[349587619,1737313833661,-554.04,0.00019724,2]
[349587620,1737313833842,-411.40673303,0.00019724,2]
[349587621,1737313833855,-88.59326697,0.00019724,2]
[349587622,1737313833864,-500.0,0.00019724,2]
[349587623,1737313833874,-373.08580441,0.00019724,2]
[349587624,1737313833887,-126.91419559,0.00019724,2]
[349587625,1737313833897,-500.0,0.00019724,2]
[349587626,1737313833906,-500.0,0.00019724,2]
[349587627,1737313833916,-500.0,0.00019724,2]
[349587628,1737313833926,-500.0,0.00019724,2]
[349587629,1737313833935,-36.92868951,0.00019724,2]
[349587631,1737313838295,-299.37950016,0.00019724,2]
[349587632,1737313838309,-163.69181033,0.00019724,2]
[349587633,1737313838319,-500.0,0.00019724,2]
[349587634,1737313838329,-500.0,0.00019724,2]
[349587635,1737313838339,-500.0,0.00019724,2]
[349587636,1737313838349,-48.24907341,0.00019725,2]
[349587637,1737313838362,-147.54722341,0.00019725,2]
[349587638,1737313838373,-500.0,0.00019725,2]
[349587640,1737313838382,-500.0,0.00019725,2]
[349587642,1737313838392,-500.0,0.00019725,2]
[349587644,1737313838402,-500.0,0.00019725,2]
[349587645,1737313838412,-500.0,0.00019725,2]
[349587646,1737313838421,-500.0,0.00019725,2]
[349587647,1737313838430,-500.0,0.00019725,2]
[349587648,1737313838440,-500.0,0.00019725,2]
[349587649,1737313838450,-500.0,0.00019725,2]
[349587650,1737313838459,-500.0,0.00019725,2]
[349587651,1737313838469,-500.0,0.00019725,2]
[349587652,1737313838479,-500.0,0.00019725,2]
[349587653,1737313838489,-500.0,0.00019725,2]
[349587654,1737313838499,-500.0,0.00019725,2]
[349587655,1737313838509,-500.0,0.00019725,2]
[349587656,1737313838519,-500.0,0.00019725,2]
[349587657,1737313838528,-500.0,0.00019725,2]
[349587658,1737313838538,-500.0,0.00019725,2]
[349587659,1737313838548,-500.0,0.00019725,2]
[349587660,1737313838558,-648.15,0.00019725,2]
[349587661,1737313838567,-500.0,0.00019725,2]
[349587662,1737313838579,-500.0,0.00019725,2]
[349587663,1737313838589,-500.0,0.00019725,2]
[349587664,1737313838602,-500.0,0.00019725,2]
[349587665,1737313838612,-500.0,0.00019725,2]
[349587666,1737313838622,-500.0,0.00019725,2]
[349587667,1737313838632,-500.0,0.00019725,2]
[349587668,1737313838641,-500.0,0.00019725,2]
[349587669,1737313838651,-500.0,0.00019725,2]
[349587670,1737313838661,-500.0,0.00019725,2]
[349587671,1737313838670,-500.0,0.00019725,2]
[349587673,1737313838679,-500.0,0.00019725,2]
[349587675,1737313838689,-500.0,0.00019725,2]
[349587677,1737313838699,-500.0,0.00019725,2]
[349587679,1737313838709,-500.0,0.00019725,2]
[349587681,1737313838719,-438.75,0.00019725,2]
[349587683,1737313838729,-500.0,0.00019725,2]
[349587685,1737313838738,-500.0,0.00019725,2]
[349587687,1737313838747,-500.0,0.00019725,2]
[349587689,1737313838757,-500.0,0.00019725,2]
[349587690,1737313838766,-500.0,0.00019725,2]
[349587692,1737313838776,-500.0,0.00019725,2]
[349587694,1737313838788,-500.0,0.00019725,2]
[349587697,1737313838798,-500.0,0.00019725,2]
[349587700,1737313838808,-500.0,0.00019725,2]
[349587702,1737313838817,-500.0,0.00019725,2]
[349587706,1737313838829,-500.0,0.00019725,2]
[349587708,1737313838838,-500.0,0.00019725,2]
[349587712,1737313838847,-500.0,0.00019725,2]
[349587713,1737313838857,-500.0,0.00019725,2]
[349587716,1737313838867,-500.0,0.00019725,2]
[349587719,1737313838876,-500.0,0.00019725,2]
[349587722,1737313838888,-417.39452726,0.00019725,2]
[349587725,1737313838898,-500.0,0.00019725,2]
[349587726,1737313838907,-500.0,0.00019725,2]
[349587728,1737313838917,-500.0,0.00019725,2]
[349587730,1737313838927,-500.0,0.00019725,2]
[349587732,1737313838937,-174.16,0.00019725,2]
[349587735,1737313838947,-500.0,0.00019725,2]
[349587736,1737313838956,-500.0,0.00019725,2]
[349587738,1737313838966,-470.16,0.00019733,2]
[349587740,1737313838976,-500.0,0.00019833,2]
[349587742,1737313838987,-500.0,0.00019998,2]
[349587745,1737313838997,-500.0,0.00019998,2]
[349587746,1737313839006,-418.87,0.00019998,2]
[349587748,1737313839016,-500.0,0.00019998,2]
[349587750,1737313839025,-500.0,0.00019998,2]
[349587752,1737313839035,-500.0,0.00019998,2]
[349587754,1737313839044,-500.0,0.00019998,2]
[349587756,1737313839052,-500.0,0.00019998,2]
[349587758,1737313839062,-500.0,0.00019998,2]
[349587760,1737313839071,-500.0,0.00019998,2]
[349587762,1737313839082,-500.0,0.00019998,2]
[349587764,1737313839092,-500.0,0.00019998,2]
[349587766,1737313839101,-500.0,0.00019998,2]
[349587768,1737313839111,-621.39,0.00019998,2]
[349587770,1737313839120,-500.0,0.00019998,2]
[349587772,1737313839129,-569.21876555,0.00019999,2]
[349587774,1737313839139,-500.0,0.00019999,2]
[349587775,1737313839147,-500.0,0.00019999,2]
[349587777,1737313839157,-500.0,0.00019999,2]
[349587779,1737313839166,-633.57866746,0.00019999,2]
[349587781,1737313839176,-500.0,0.00019999,2]
[349587783,1737313839186,-253.35853558,0.00019999,2]
[349587785,1737313839195,-18.66530122,0.00019999,2]
[349587787,1737313839208,-481.33469878,0.00019999,2]
[349587788,1737313839217,-350.73521681,0.00019999,2]
[349587789,1737313839232,-149.26478319,0.00019999,2]
[349587790,1737313839241,-500.0,0.00019999,2]
[349587791,1737313839250,-500.0,0.00019999,2]
[349587792,1737313839262,-247.11957653,0.00019999,2]
[349587793,1737313839275,-252.88042347,0.00019999,2]
[349587794,1737313839286,-500.0,0.00019999,2]
[349587795,1737313839295,-500.0,0.00019999,2]
[349587796,1737313839305,-500.0,0.00019999,2]
[349587797,1737313839315,-500.0,0.00019999,2]
[349587798,1737313839325,-500.0,0.00019999,2]
[349587799,1737313839339,-88.16394497,0.00019999,2]
[349587800,1737313839351,-411.83605503,0.00019999,2]
[349587801,1737313839361,-500.0,0.00019999,2]
[349587802,1737313839371,-150.0,0.000202,2]
[349587803,1737313839380,-208.16153497,0.00020272,2]
[349587804,1737313839393,-291.83846503,0.00020272,2]
[349587805,1737313839402,-500.0,0.00020272,2]
[349587806,1737313839412,-500.0,0.00020272,2]
[349587807,1737313839421,-500.0,0.00020272,2]
[349587808,1737313839431,-500.0,0.00020272,2]
[349587809,1737313839440,-96.76154017,0.00020272,2]
[349587810,1737313839451,-403.23845983,0.00020272,2]
[349587811,1737313839460,-77.34154017,0.00020272,2]
[349587812,1737313839484,-422.65845983,0.00020272,2]
[349587813,1737313839493,-500.0,0.00020272,2]
[349587814,1737313839503,-500.0,0.00020273,2]
[349587815,1737313839512,-500.0,0.00020273,2]
[349587816,1737313839521,-500.0,0.00020273,2]
[349587817,1737313839531,-500.0,0.00020273,2]
[349587818,1737313839540,-500.0,0.00020273,2]
[349587819,1737313839549,-500.0,0.00020273,2]
[349587820,1737313839559,-208.44174017,0.00020273,2]
[349587828,1737313840469,-229.63825983,0.00020273,2]
[349587830,1737313840479,-502.04698444,0.00020446,2]
[349587832,1737313840489,-501.96643475,0.00020446,2]
[349587834,1737313840499,-501.22211191,0.00020446,2]
[349587835,1737313840508,-502.23657365,0.00020446,2]
[349587837,1737313840517,-501.30616063,0.00020446,2]
[349587839,1737313840527,-500.9497047,0.00020446,2]
[349587840,1737313840536,-501.95728721,0.00020446,2]
[349587842,1737313840545,-501.56075317,0.00020446,2]
[349587844,1737313840555,-500.0,0.00020446,2]
[349587845,1737313840564,-500.0,0.00020446,2]
[349587846,1737313840573,-501.76178357,0.00020446,2]
[349587847,1737313840587,-501.8942469,0.00020446,2]
[349587848,1737313840598,-500.0,0.00020446,2]
[349587850,1737313840607,-504.67377525,0.00020446,2]
[349587852,1737313840617,-500.83039609,0.00020446,2]
[349587854,1737313840627,-500.0,0.00020446,2]
[349587856,1737313840636,-211.83412556,0.00020446,2]
[349587858,1737313840646,-500.76426458,0.00020446,2]
[349587860,1737313840656,-649.10050615,0.00020446,2]
[349587862,1737313840666,-501.74663425,0.00020446,2]
[349587864,1737313840676,-172.467,0.00020488,2]
[349587866,1737313840685,-500.0,0.00020546,2]
[349587868,1737313840695,-500.0,0.00020546,2]
[349587870,1737313840705,-285.69,0.00020546,2]
[349587872,1737313840715,-500.0,0.00020546,2]
[349587874,1737313840724,-500.0,0.00020546,2]
[349587876,1737313840734,-500.0,0.00020546,2]
[349587878,1737313840744,-146.12494913,0.00020546,2]
[349587880,1737313840760,-353.87505087,0.00020546,2]
[349587881,1737313840770,-500.0,0.00020546,2]
[349587882,1737313840780,-318.23159742,0.00020547,2]
[349587883,1737313840789,-500.0,0.00020547,2]
[349587884,1737313840799,-500.0,0.00020547,2]
[349587885,1737313840809,-492.0057667,0.00020547,2]
[349587886,1737313840819,-169.98,0.00020558,2]
[349587887,1737313840829,-270.238307,0.0002058,2]
[349587888,1737313840838,-803.46225802,0.0002061,2]
[349587889,1737313840914,-2196.53774198,0.0002061,2]
[349587890,1737313840924,-721.91627446,0.0002062,2]
[349587891,1737313840934,-200.0,0.00020682,2]
[349587892,1737313840944,-438.33,0.00020692,2]
[349587893,1737313840953,-438.33,0.00020692,2]
[349587894,1737313840963,-438.33,0.00020692,2]
[349587895,1737313840972,-304.8463421,0.0002072,2]
[349587896,1737313840983,-4217.5033,0.00020799,2]
[349587897,1737313840993,-28590.7088,0.000208,2]
[349587898,1737313841002,-216.55835254,0.000208,2]
[349587899,1737313841012,-216.55835248,0.00020811,2]
[349587900,1737313841021,-268.34,0.0002082,2]
[349587901,1737313841031,-500.0,0.0002082,2]
[349587902,1737313841041,-500.0,0.0002082,2]
[349587903,1737313841051,-500.0,0.0002082,2]
[349587904,1737313841060,-500.0,0.0002082,2]
[349587905,1737313841069,-500.0,0.0002082,2]
[349587906,1737313841081,-500.0,0.0002082,2]
[349587907,1737313841091,-500.0,0.00020821,2]
[349587908,1737313841100,-216.55835248,0.00020822,2]
[349587909,1737313841110,-151.1,0.00020829,2]
[349587910,1737313841119,-150.0,0.00020829,2]
[349587911,1737313841129,-216.55835248,0.00020833,2]
[349587913,1737313841138,-216.55835248,0.00020844,2]
[349587915,1737313841148,-216.55835248,0.00020856,2]
[349587917,1737313841158,-744.98,0.00020889,2]
[349587919,1737313841167,-500.0,0.00020898,2]
[349587921,1737313841176,-500.0,0.00020898,2]
[349587923,1737313841186,-757.26,0.00020898,2]
[349587925,1737313841195,-500.0,0.00020898,2]
[349587927,1737313841204,-500.0,0.00020898,2]
[349587929,1737313841215,-500.0,0.00020898,2]
[349587932,1737313841225,-577.15,0.00020898,2]
[349587933,1737313841234,-500.0,0.00020898,2]
[349587935,1737313841243,-500.0,0.00020898,2]
[349587937,1737313841252,-677.93,0.00020898,2]
[349587939,1737313841262,-500.0,0.00020898,2]
[349587941,1737313841273,-500.0,0.00020898,2]
[349587943,1737313841282,-500.0,0.00020898,2]
[349587945,1737313841291,-500.0,0.00020898,2]
[349587948,1737313841301,-500.0,0.00020898,2]
[349587949,1737313841310,-500.0,0.00020898,2]
[349587952,1737313841320,-500.0,0.00020898,2]
[349587953,1737313841333,-500.0,0.00020898,2]
[349587954,1737313841343,-500.0,0.00020898,2]
[349587955,1737313841352,-500.0,0.00020898,2]
[349587956,1737313841362,-500.0,0.00020898,2]
[349587957,1737313841372,-584.74,0.00020898,2]
[349587958,1737313841382,-459.04,0.00020898,2]
[349587959,1737313841392,-500.0,0.00020898,2]
[349587960,1737313841401,-500.0,0.00020898,2]
[349587961,1737313841411,-500.0,0.00020898,2]
[349587962,1737313841420,-500.0,0.00020898,2]
[349587963,1737313841430,-500.0,0.00020898,2]
[349587964,1737313841441,-500.0,0.00020898,2]
[349587965,1737313841450,-500.0,0.00020898,2]
[349587966,1737313841459,-800.62,0.00020898,2]
[349587967,1737313841469,-537.95,0.00020898,2]
[349587968,1737313841478,-500.0,0.00020898,2]
[349587969,1737313841487,-500.0,0.00020898,2]
[349587970,1737313841497,-500.0,0.00020898,2]
[349587971,1737313841506,-500.0,0.00020898,2]
[349587972,1737313841515,-500.0,0.00020898,2]
[349587973,1737313841525,-500.0,0.00020898,2]
[349587974,1737313841534,-500.0,0.00020898,2]
[349587975,1737313841543,-678.36,0.00020898,2]
[349587976,1737313841552,-756.92,0.00020898,2]
[349587977,1737313841562,-409.92520004,0.00020899,2]
[349587978,1737313841571,-500.0,0.00020899,2]
[349587979,1737313841583,-500.0,0.00020899,2]
[349587980,1737313841592,-500.0,0.00020899,2]
[349587981,1737313841601,-550.17754865,0.00020899,2]
[349587982,1737313841611,-500.0,0.00020899,2]
[349587983,1737313841620,-548.1,0.00020899,2]
[349587984,1737313841630,-514.18,0.00020899,2]
[349587985,1737313841639,-500.0,0.00020899,2]
[349587986,1737313841648,-500.0,0.00020899,2]
[349587987,1737313841657,-500.0,0.00020899,2]
[349587988,1737313841667,-544.01,0.00020899,2]
[349587989,1737313841676,-440.9,0.00020899,2]
[349587990,1737313841686,-500.0,0.00020899,2]
[349587991,1737313841696,-500.0,0.00020899,2]
[349587992,1737313841705,-500.0,0.00020899,2]
[349587993,1737313841715,-500.0,0.00020899,2]
[349587994,1737313841725,-500.0,0.00020899,2]
[349587995,1737313841734,-500.0,0.00020899,2]
[349587996,1737313841743,-500.0,0.00020899,2]
[349587997,1737313841753,-500.0,0.00020899,2]
[349587998,1737313841762,-500.0,0.00020899,2]
[349587999,1737313841772,-500.0,0.00020899,2]
[349588000,1737313841781,-500.0,0.00020899,2]
[349588001,1737313841791,-500.0,0.00020899,2]
[349588002,1737313841801,-500.0,0.00020899,2]
[349588003,1737313841810,-500.0,0.00020899,2]
[349588004,1737313841821,-500.0,0.00020899,2]
[349588005,1737313841831,-500.0,0.00020899,2]
[349588006,1737313841840,-500.0,0.00020899,2]
[349588007,1737313841850,-500.0,0.00020899,2]
[349588008,1737313841859,-500.0,0.00020899,2]
[349588009,1737313841868,-500.0,0.00020899,2]
[349588010,1737313841878,-500.0,0.00020899,2]
[349588011,1737313841887,-500.0,0.00020899,2]
[349588012,1737313841896,-500.0,0.00020899,2]
[349588013,1737313841906,-500.0,0.00020899,2]
[349588014,1737313841915,-500.0,0.00020899,2]
[349588015,1737313841925,-574.32,0.00020899,2]
[349588016,1737313841934,-500.0,0.00020899,2]
[349588017,1737313841944,-500.0,0.00020899,2]
[349588018,1737313841953,-500.0,0.00020899,2]
[349588019,1737313841962,-500.0,0.00020899,2]
[349588020,1737313841971,-500.0,0.00020899,2]
[349588021,1737313841982,-500.0,0.00020899,2]
[349588022,1737313841991,-500.0,0.00020899,2]
[349588023,1737313842001,-500.0,0.00020899,2]
[349588024,1737313842010,-500.0,0.00020899,2]
[349588025,1737313842019,-167.99691944,0.00020899,2]
[349588026,1737313842029,-500.0,0.00020899,2]
[349588027,1737313842038,-500.0,0.00020899,2]
[349588028,1737313842048,-500.0,0.00020899,2]
[349588029,1737313842057,-500.0,0.00020899,2]
[349588030,1737313842066,-500.0,0.00020899,2]
[349588031,1737313842076,-378.13703949,0.00020899,2]
[349588032,1737313842090,-500.0,0.00020899,2]
[349588033,1737313842099,-500.0,0.00020899,2]
[349588034,1737313842108,-500.0,0.00020899,2]
[349588035,1737313842118,-591.38,0.00020899,2]
[349588036,1737313842129,-500.0,0.00020899,2]
[349588037,1737313842138,-500.0,0.00020899,2]
[349588038,1737313842147,-500.0,0.00020899,2]
[349588039,1737313842157,-500.0,0.00020899,2]
[349588040,1737313842166,-500.0,0.00020899,2]
[349588041,1737313842175,-500.0,0.00020899,2]
[349588042,1737313842185,-562.5,0.00020899,2]
[349588043,1737313842194,-500.0,0.00020899,2]
[349588044,1737313842204,-500.0,0.00020899,2]
[349588045,1737313842213,-500.0,0.00020899,2]
[349588046,1737313842223,-500.0,0.00020899,2]
[349588047,1737313842232,-500.0,0.00020899,2]
[349588048,1737313842241,-500.0,0.00020899,2]
[349588049,1737313842251,-500.0,0.00020899,2]
[349588050,1737313842261,-509.55,0.00020899,2]
[349588051,1737313842273,-500.0,0.00020899,2]
[349588052,1737313842283,-500.0,0.00020899,2]
[349588053,1737313842293,-500.0,0.00020899,2]
[349588054,1737313842302,-500.0,0.00020899,2]
[349588055,1737313842313,-500.0,0.00020899,2]
[349588056,1737313842322,-500.0,0.00020899,2]
[349588057,1737313842334,-500.0,0.00020899,2]
[349588058,1737313842344,-500.0,0.00020899,2]
[349588059,1737313842353,-500.0,0.00020899,2]
[349588060,1737313842363,-500.0,0.00020899,2]
[349588061,1737313842373,-500.0,0.00020899,2]
[349588062,1737313842382,-500.0,0.00020899,2]
[349588063,1737313842391,-500.0,0.00020899,2]
[349588064,1737313842400,-500.0,0.00020899,2]
[349588065,1737313842410,-500.0,0.00020899,2]
[349588066,1737313842419,-500.0,0.00020899,2]
[349588067,1737313842428,-253.73949803,0.00020899,2]
[349588068,1737313842438,-500.0,0.00020899,2]
[349588069,1737313842447,-500.0,0.00020899,2]
[349588070,1737313842456,-500.0,0.00020899,2]
[349588071,1737313842466,-500.0,0.00020899,2]
[349588072,1737313842475,-500.0,0.00020899,2]
[349588073,1737313842485,-500.0,0.00020899,2]
[349588074,1737313842495,-500.0,0.00020899,2]
[349588075,1737313842505,-500.0,0.00020899,2]
[349588076,1737313842515,-500.0,0.00020899,2]
[349588077,1737313842524,-500.0,0.00020899,2]
[349588078,1737313842533,-500.0,0.00020899,2]
[349588079,1737313842543,-500.0,0.00020899,2]
[349588080,1737313842696,-500.0,0.00020899,2]
[349588081,1737313842706,-500.0,0.00020899,2]
[349588082,1737313842716,-500.0,0.00020899,2]
[349588083,1737313842725,-500.0,0.00020899,2]
[349588084,1737313842734,-500.0,0.00020899,2]
[349588085,1737313842744,-500.0,0.00020899,2]
[349588086,1737313842753,-500.0,0.00020899,2]
[349588087,1737313842762,-500.0,0.00020899,2]
[349588088,1737313842771,-500.0,0.00020899,2]
[349588089,1737313842780,-500.0,0.00020899,2]
[349588090,1737313842790,-500.0,0.00020899,2]
[349588091,1737313842799,-500.0,0.00020899,2]
[349588092,1737313842809,-500.0,0.00020899,2]
[349588093,1737313842819,-500.0,0.00020899,2]
[349588094,1737313842828,-500.0,0.00020899,2]
[349588095,1737313842838,-500.0,0.00020899,2]
[349588096,1737313842848,-552.38,0.00020899,2]
[349588097,1737313842857,-500.0,0.00020899,2]
[349588098,1737313842867,-500.0,0.00020899,2]
[349588099,1737313842876,-500.0,0.00020899,2]
[349588100,1737313842885,-622.45346948,0.00020899,2]
[349588101,1737313842894,-500.0,0.00020899,2]
[349588102,1737313842903,-500.0,0.00020899,2]
[349588103,1737313842912,-500.0,0.00020899,2]
[349588104,1737313842921,-469.19382604,0.00020899,2]
[349588105,1737313842931,-500.0,0.00020899,2]
[349588106,1737313842941,-500.0,0.00020899,2]
[349588107,1737313842950,-500.0,0.00020899,2]
[349588108,1737313842960,-500.0,0.00020899,2]
[349588109,1737313842969,-500.0,0.00020899,2]
[349588110,1737313842979,-500.0,0.00020899,2]
[349588111,1737313842989,-500.0,0.00020899,2]
[349588112,1737313842999,-500.0,0.00020899,2]
[349588113,1737313843009,-500.0,0.00020899,2]
[349588114,1737313843018,-500.0,0.00020899,2]
[349588115,1737313843028,-501.71252082,0.00020899,2]
[349588116,1737313843038,-500.0,0.00020899,2]
[349588117,1737313843047,-500.0,0.00020899,2]
[349588118,1737313843056,-500.0,0.00020899,2]
[349588119,1737313843066,-500.0,0.00020899,2]
[349588120,1737313843075,-500.0,0.00020899,2]
[349588121,1737313843087,-500.0,0.00020899,2]
[349588122,1737313843099,-507.2859743,0.00020899,2]